[Event "Titled Tuesday Blitz September 20 Late 2022"]
[White "Vasquez Schroeder, Rodrigo"]
[Black "Livaic, Leon"]
[WhiteFideId "3400042"]
[BlackFideId "14531534"]
[WhiteElo "2577"]
[BlackElo "2540"]
[Result "1-0"]
[Round "09"]
[TimeControl "180+1"]
[Date "2022.09.20"]
[WhiteClock "0:00:20"]
[BlackClock "0:00:01"]

1. d4 {[%clk 0:03:00]}  Nf6 {[%clk 0:03:00]} 2. Nf3 {[%clk 0:03:00]}  b6 {[%clk 0:03:00]} 3. g3 {[%clk 0:02:58]}  Bb7 {[%clk 0:03:01]} 4. Bg2 {[%clk 0:02:59]}  e6 {[%clk 0:03:01]} 5. O-O {[%clk 0:03:00]}  Be7 {[%clk 0:02:59]} 6. b3 {[%clk 0:03:00]}  O-O {[%clk 0:02:59]} 7. Bb2 {[%clk 0:03:00]}  d6 {[%clk 0:02:57]} 8. c4 {[%clk 0:03:00]}  Nbd7 {[%clk 0:02:58]} 9. Qc2 {[%clk 0:03:00]}  Be4 {[%clk 0:02:56]} 10. Qc1 {[%clk 0:03:00]}  Bb7 {[%clk 0:02:56]} 11. Nc3 {[%clk 0:03:00]}  Ne4 {[%clk 0:02:54]} 12. Qc2 {[%clk 0:03:00]}  Nxc3 {[%clk 0:02:54]} 13. Bxc3 {[%clk 0:03:00]}  Nf6 {[%clk 0:02:49]} 14. Nd2 {[%clk 0:02:56]}  Bxg2 {[%clk 0:02:49]} 15. Kxg2 {[%clk 0:02:56]}  d5 {[%clk 0:02:49]} 16. e4 {[%clk 0:02:56]}  c6 {[%clk 0:02:18]} 17. Rfe1 {[%clk 0:02:43]}  Rc8 {[%clk 0:02:15]} 18. Rad1 {[%clk 0:02:41]}  Qc7 {[%clk 0:02:14]} 19. Bb2 {[%clk 0:02:34]}  Qb7 {[%clk 0:02:14]} 20. e5 {[%clk 0:02:26]}  Nd7 {[%clk 0:02:14]} 21. cxd5 {[%clk 0:02:26]}  cxd5 {[%clk 0:02:14]} 22. Qd3 {[%clk 0:02:26]}  Rc6 {[%clk 0:02:08]} 23. Nf3 {[%clk 0:02:26]}  Rfc8 {[%clk 0:02:08]} 24. Re2 {[%clk 0:02:26]}  Nb8 {[%clk 0:02:06]} 25. Ne1 {[%clk 0:02:04]}  a5 {[%clk 0:01:56]} 26. h4 {[%clk 0:01:59]}  Qa6 {[%clk 0:01:55]} 27. a3 {[%clk 0:01:55]}  Qxd3 {[%clk 0:01:53]} 28. Nxd3 {[%clk 0:01:55]}  b5 {[%clk 0:01:37]} 29. Rc1 {[%clk 0:01:50]}  Rxc1 {[%clk 0:01:36]} 30. Nxc1 {[%clk 0:01:48]}  Nd7 {[%clk 0:01:28]} 31. Nd3 {[%clk 0:01:41]}  Nb6 {[%clk 0:01:23]} 32. Kf1 {[%clk 0:01:32]}  a4 {[%clk 0:01:23]} 33. b4 {[%clk 0:01:32]}  Nc4 {[%clk 0:01:19]} 34. Bc1 {[%clk 0:01:31]}  h6 {[%clk 0:01:14]} 35. Ke1 {[%clk 0:01:30]}  Kf8 {[%clk 0:01:08]} 36. Rc2 {[%clk 0:01:29]}  Ke8 {[%clk 0:01:08]} 37. h5 {[%clk 0:01:27]}  Kd7 {[%clk 0:01:08]} 38. Ke2 {[%clk 0:01:24]}  Rh8 {[%clk 0:00:51]} 39. f4 {[%clk 0:01:06]}  g6 {[%clk 0:00:51]} 40. Kf3 {[%clk 0:01:06]}  gxh5 {[%clk 0:00:44]} 41. Rh2 {[%clk 0:01:05]}  h4 {[%clk 0:00:44]} 42. g4 {[%clk 0:01:06]}  Rg8 {[%clk 0:00:40]} 43. Ne1 {[%clk 0:00:54]}  f6 {[%clk 0:00:39]} 44. Rh3 {[%clk 0:00:38]}  h5 {[%clk 0:00:27]} 45. gxh5 {[%clk 0:00:35]}  f5 {[%clk 0:00:27]} 46. Ng2 {[%clk 0:00:34]}  Rh8 {[%clk 0:00:27]} 47. Nxh4 {[%clk 0:00:30]}  Rxh5 {[%clk 0:00:27]} 48. Kg3 {[%clk 0:00:30]}  Rh8 {[%clk 0:00:18]} 49. Nf3 {[%clk 0:00:30]}  Rg8+ {[%clk 0:00:18]} 50. Ng5 {[%clk 0:00:26]}  Rg6 {[%clk 0:00:10]} 51. Rh7 {[%clk 0:00:26]}  Ke8 {[%clk 0:00:09]} 52. Kh4 {[%clk 0:00:27]}  Kd7 {[%clk 0:00:02]} 53. Kh5 {[%clk 0:00:26]}  Rg8 {[%clk 0:00:02]} 54. Kh6 {[%clk 0:00:23]}  Kd8 {[%clk 0:00:01]} 55. Nxe6+ {[%clk 0:00:22]}  Ke8 {[%clk 0:00:02]} 56. Ng7+ {[%clk 0:00:19]}  Kf8 {[%clk 0:00:01]} 57. Nxf5 {[%clk 0:00:20]} 1-0


[Site "https://www.chess.com"]

[Event "Titled Tuesday Blitz September 20 Late 2022"]
[White "Winterberg, Lukas"]
[Black "Maksimovic, Bojan"]
[WhiteFideId "24622702"]
[BlackFideId "14408120"]
[WhiteElo "2349"]
[BlackElo "2447"]
[Result "0-1"]
[Round "09"]
[TimeControl "180+1"]
[Date "2022.09.20"]
[WhiteClock "0:00:02"]
[BlackClock "0:00:06"]

1. d4 {[%clk 0:03:00]}  Nf6 {[%clk 0:02:57]} 2. Nf3 {[%clk 0:03:01]}  g6 {[%clk 0:02:58]} 3. c4 {[%clk 0:03:01]}  Bg7 {[%clk 0:02:58]} 4. Nc3 {[%clk 0:03:01]}  O-O {[%clk 0:02:59]} 5. e4 {[%clk 0:03:01]}  d6 {[%clk 0:03:00]} 6. Be2 {[%clk 0:03:01]}  Nbd7 {[%clk 0:02:58]} 7. Be3 {[%clk 0:02:58]}  e5 {[%clk 0:02:57]} 8. d5 {[%clk 0:02:58]}  Ng4 {[%clk 0:02:42]} 9. Bg5 {[%clk 0:02:58]}  f6 {[%clk 0:02:43]} 10. Bd2 {[%clk 0:02:58]}  a5 {[%clk 0:02:40]} 11. h3 {[%clk 0:02:56]}  Nh6 {[%clk 0:02:41]} 12. g4 {[%clk 0:02:54]}  Nc5 {[%clk 0:02:34]} 13. Be3 {[%clk 0:02:54]}  Bd7 {[%clk 0:02:32]} 14. Nd2 {[%clk 0:02:48]}  f5 {[%clk 0:02:27]} 15. gxf5 {[%clk 0:02:33]}  gxf5 {[%clk 0:02:27]} 16. Bxc5 {[%clk 0:02:21]}  dxc5 {[%clk 0:02:27]} 17. Qb3 {[%clk 0:02:13]}  b6 {[%clk 0:02:27]} 18. O-O-O {[%clk 0:02:12]}  fxe4 {[%clk 0:02:24]} 19. Ncxe4 {[%clk 0:02:10]}  Nf5 {[%clk 0:02:24]} 20. Rhg1 {[%clk 0:02:05]}  Kh8 {[%clk 0:02:22]} 21. Bg4 {[%clk 0:02:01]}  Bh6 {[%clk 0:02:12]} 22. Kb1 {[%clk 0:01:51]}  a4 {[%clk 0:02:10]} 23. Qd3 {[%clk 0:01:50]}  a3 {[%clk 0:02:05]} 24. b3 {[%clk 0:01:43]}  Nd4 {[%clk 0:02:05]} 25. Bxd7 {[%clk 0:01:29]}  Qxd7 {[%clk 0:02:06]} 26. Rg4 {[%clk 0:01:28]}  Bxd2 {[%clk 0:01:52]} 27. Qxd2 {[%clk 0:01:18]}  Qf5 {[%clk 0:00:40]} 28. Rdg1 {[%clk 0:01:06]}  Nf3 {[%clk 0:00:31]} 29. Qh6 {[%clk 0:01:05]}  Rf7 {[%clk 0:00:31]} 30. R1g3 {[%clk 0:00:49]}  Raf8 {[%clk 0:00:28]} 31. Kc1 {[%clk 0:00:42]}  Nd4 {[%clk 0:00:27]} 32. Kd1 {[%clk 0:00:37]}  Rb8 {[%clk 0:00:12]} 33. Rg7 {[%clk 0:00:34]}  Rbf8 {[%clk 0:00:08]} 34. Rxf7 {[%clk 0:00:23]}  Qxf7 {[%clk 0:00:08]} 35. Qg5 {[%clk 0:00:19]}  Nf3 {[%clk 0:00:06]} 36. Qh6 {[%clk 0:00:14]}  Nd4 {[%clk 0:00:05]} 37. Ke1 {[%clk 0:00:06]}  Nf3+ {[%clk 0:00:01]} 38. Kf1 {[%clk 0:00:06]}  Nd4 {[%clk 0:00:01]} 39. Kg2 {[%clk 0:00:05]}  Nf5 {[%clk 0:00:02]} 40. Qg5 {[%clk 0:00:03]}  Nxg3 {[%clk 0:00:02]} 41. Qxe5+ {[%clk 0:00:02]}  Qg7 {[%clk 0:00:03]} 42. Qxg7+ {[%clk 0:00:01]}  Kxg7 {[%clk 0:00:04]} 43. Kxg3 {[%clk 0:00:01]}  Kg6 {[%clk 0:00:04]} 44. f4 {[%clk 0:00:01]}  Kf5 {[%clk 0:00:04]} 45. Kf3 {[%clk 0:00:01]}  Re8 {[%clk 0:00:04]} 46. Ng3+ {[%clk 0:00:02]}  Kg6 {[%clk 0:00:04]} 47. Ne4 {[%clk 0:00:03]}  h6 {[%clk 0:00:04]} 48. Kg4 {[%clk 0:00:03]}  h5+ {[%clk 0:00:04]} 49. Kf3 {[%clk 0:00:03]}  Kf5 {[%clk 0:00:04]} 50. Ng3+ {[%clk 0:00:03]}  Kg6 {[%clk 0:00:05]} 51. Ne4 {[%clk 0:00:04]}  Re7 {[%clk 0:00:06]} 52. Ng3 {[%clk 0:00:02]}  Re1 {[%clk 0:00:05]} 53. f5+ {[%clk 0:00:02]}  Kg5 {[%clk 0:00:06]} 0-1


[Site "https://www.chess.com"]

[Event "Titled Tuesday Blitz September 20 Late 2022"]
[White "Zhigalko, Sergei"]
[Black "Perez Ponsa, Federico"]
[WhiteFideId "13502956"]
[BlackFideId "117927"]
[WhiteElo "2662"]
[BlackElo "2604"]
[Result "1-0"]
[Round "09"]
[TimeControl "180+1"]
[Date "2022.09.20"]
[WhiteClock "0:00:43"]
[BlackClock "0:01:56"]

1. e4 {[%clk 0:03:00]}  e5 {[%clk 0:02:56]} 2. Nf3 {[%clk 0:03:01]}  Nc6 {[%clk 0:02:56]} 3. Bb5 {[%clk 0:03:00]}  a6 {[%clk 0:02:56]} 4. Ba4 {[%clk 0:03:00]}  Nf6 {[%clk 0:02:56]} 5. O-O {[%clk 0:03:01]}  Be7 {[%clk 0:02:57]} 6. Re1 {[%clk 0:03:01]}  b5 {[%clk 0:02:57]} 7. Bb3 {[%clk 0:03:02]}  O-O {[%clk 0:02:58]} 8. a4 {[%clk 0:03:02]}  Na5 {[%clk 0:02:56]} 9. Ba2 {[%clk 0:03:00]}  d5 {[%clk 0:02:55]} 10. d4 {[%clk 0:02:50]}  dxe4 {[%clk 0:02:47]} 11. Nxe5 {[%clk 0:02:50]}  c5 {[%clk 0:02:47]} 12. Bd2 {[%clk 0:02:12]}  cxd4 {[%clk 0:02:35]} 13. axb5 {[%clk 0:01:58]}  axb5 {[%clk 0:02:35]} 14. Bxa5 {[%clk 0:01:57]}  Rxa5 {[%clk 0:02:29]} 15. Nc6 {[%clk 0:01:57]}  Rxa2 {[%clk 0:02:29]} 16. Rxa2 {[%clk 0:01:50]}  Qc7 {[%clk 0:02:28]} 17. Nxe7+ {[%clk 0:01:48]}  Qxe7 {[%clk 0:02:28]} 18. Qxd4 {[%clk 0:01:48]}  Be6 {[%clk 0:02:29]} 19. Ra7 {[%clk 0:01:48]}  Qd8 {[%clk 0:02:26]} 20. Qxd8 {[%clk 0:01:34]}  Rxd8 {[%clk 0:02:27]} 21. h3 {[%clk 0:01:33]}  h5 {[%clk 0:02:16]} 22. Rb7 {[%clk 0:01:29]}  Bd7 {[%clk 0:02:04]} 23. Rd1 {[%clk 0:01:00]}  Rc8 {[%clk 0:01:59]} 24. Rdxd7 {[%clk 0:00:59]}  Nxd7 {[%clk 0:01:59]} 25. Rxd7 {[%clk 0:01:00]}  Rxc2 {[%clk 0:02:00]} 26. Nc3 {[%clk 0:00:54]}  b4 {[%clk 0:01:59]} 27. Nxe4 {[%clk 0:00:53]}  Rxb2 {[%clk 0:01:59]} 28. Ng5 {[%clk 0:00:50]}  g6 {[%clk 0:01:53]} 29. Rxf7 {[%clk 0:00:46]}  Rb1+ {[%clk 0:01:54]} 30. Kh2 {[%clk 0:00:46]}  b3 {[%clk 0:01:55]} 31. Rb7 {[%clk 0:00:46]}  h4 {[%clk 0:01:55]} 32. Nf3 {[%clk 0:00:44]}  b2 {[%clk 0:01:55]} 33. Nxh4 {[%clk 0:00:44]}  g5 {[%clk 0:01:56]} 34. Nf3 {[%clk 0:00:43]} 1-0


[Site "https://www.chess.com"]

[Event "Titled Tuesday Blitz September 20 Late 2022"]
[White "Besedes, Danilo"]
[Black "D`Arruda, Ricardo D."]
[WhiteFideId "946796"]
[BlackFideId "100692"]
[WhiteElo "2352"]
[BlackElo "2469"]
[Result "0-1"]
[Round "10"]
[TimeControl "180+1"]
[Date "2022.09.20"]
[WhiteClock "0:00:07"]
[BlackClock "0:00:26"]

1. d4 {[%clk 0:03:00]}  Nf6 {[%clk 0:02:53]} 2. Bf4 {[%clk 0:03:01]}  d6 {[%clk 0:02:53]} 3. e3 {[%clk 0:03:01]}  g6 {[%clk 0:02:52]} 4. c3 {[%clk 0:03:00]}  Bg7 {[%clk 0:02:52]} 5. Nd2 {[%clk 0:03:01]}  O-O {[%clk 0:02:52]} 6. Ngf3 {[%clk 0:03:00]}  b6 {[%clk 0:02:48]} 7. h3 {[%clk 0:03:00]}  Bb7 {[%clk 0:02:48]} 8. Be2 {[%clk 0:03:00]}  Nbd7 {[%clk 0:02:48]} 9. O-O {[%clk 0:03:00]}  Re8 {[%clk 0:02:48]} 10. Bh2 {[%clk 0:03:00]}  e5 {[%clk 0:02:47]} 11. a3 {[%clk 0:02:59]}  e4 {[%clk 0:02:44]} 12. Ne1 {[%clk 0:02:58]}  a5 {[%clk 0:02:41]} 13. b4 {[%clk 0:02:56]}  axb4 {[%clk 0:02:39]} 14. cxb4 {[%clk 0:02:56]}  Nd5 {[%clk 0:02:01]} 15. Qc1 {[%clk 0:02:43]}  f5 {[%clk 0:01:59]} 16. Bc4 {[%clk 0:02:38]}  Kh8 {[%clk 0:01:59]} 17. Nc2 {[%clk 0:02:35]}  Qg5 {[%clk 0:01:39]} 18. b5 {[%clk 0:02:09]}  N7f6 {[%clk 0:01:39]} 19. Nb4 {[%clk 0:02:01]}  Nxb4 {[%clk 0:01:29]} 20. axb4 {[%clk 0:01:56]}  Rac8 {[%clk 0:01:14]} 21. Ra7 {[%clk 0:01:54]}  Bd5 {[%clk 0:01:13]} 22. Bxd5 {[%clk 0:01:52]}  Nxd5 {[%clk 0:01:14]} 23. Qc4 {[%clk 0:01:51]}  f4 {[%clk 0:01:12]} 24. exf4 {[%clk 0:01:30]}  Nxf4 {[%clk 0:01:13]} 25. Bxf4 {[%clk 0:01:29]}  Qxf4 {[%clk 0:01:14]} 26. Nb3 {[%clk 0:01:29]}  e3 {[%clk 0:01:09]} 27. fxe3 {[%clk 0:01:29]}  Qxe3+ {[%clk 0:01:10]} 28. Kh1 {[%clk 0:01:29]}  Qg3 {[%clk 0:01:01]} 29. d5 {[%clk 0:01:16]}  Re3 {[%clk 0:00:56]} 30. Nd2 {[%clk 0:01:12]}  Be5 {[%clk 0:00:51]} 31. Kg1 {[%clk 0:01:03]}  Rd3 {[%clk 0:00:43]} 32. Nf3 {[%clk 0:01:00]}  Rc3 {[%clk 0:00:31]} 33. Qe4 {[%clk 0:00:39]}  Re8 {[%clk 0:00:31]} 34. Nxe5 {[%clk 0:00:37]}  Rxe5 {[%clk 0:00:32]} 35. Qd4 {[%clk 0:00:29]}  Rc2 {[%clk 0:00:29]} 36. Ra8+ {[%clk 0:00:17]}  Kg7 {[%clk 0:00:28]} 37. Qg4 {[%clk 0:00:07]}  Rxg2+ {[%clk 0:00:26]} 38. Kh1 {[%clk 0:00:07]}  Rh2# {[%clk 0:00:26]} 0-1


[Site "https://www.chess.com"]

[Event "Titled Tuesday Blitz September 20 Late 2022"]
[White "Caruana, Fabiano"]
[Black "Bortnyk, Olexandr"]
[WhiteFideId "2020009"]
[BlackFideId "14120828"]
[WhiteElo "3044"]
[BlackElo "2998"]
[Result "1/2-1/2"]
[Round "10"]
[TimeControl "180+1"]
[Date "2022.09.20"]
[WhiteClock "0:00:59"]
[BlackClock "0:00:09"]

1. c4 {[%clk 0:03:00]}  d6 {[%clk 0:03:00]} 2. Nc3 {[%clk 0:03:00]}  Nf6 {[%clk 0:03:01]} 3. g3 {[%clk 0:03:01]}  g6 {[%clk 0:03:01]} 4. Bg2 {[%clk 0:03:01]}  Bg7 {[%clk 0:03:01]} 5. Nf3 {[%clk 0:03:02]}  O-O {[%clk 0:03:02]} 6. O-O {[%clk 0:03:03]}  Bf5 {[%clk 0:03:02]} 7. d3 {[%clk 0:03:03]}  c6 {[%clk 0:03:00]} 8. e4 {[%clk 0:03:03]}  Bd7 {[%clk 0:02:59]} 9. d4 {[%clk 0:03:00]}  Qc7 {[%clk 0:02:46]} 10. h3 {[%clk 0:02:58]}  Na6 {[%clk 0:02:44]} 11. Be3 {[%clk 0:02:58]}  e5 {[%clk 0:02:23]} 12. Rc1 {[%clk 0:02:57]}  Rfe8 {[%clk 0:02:12]} 13. d5 {[%clk 0:02:56]}  Nc5 {[%clk 0:02:07]} 14. Qc2 {[%clk 0:02:48]}  a5 {[%clk 0:02:07]} 15. Nd2 {[%clk 0:02:45]}  Nh5 {[%clk 0:01:47]} 16. Nb3 {[%clk 0:02:40]}  Nxb3 {[%clk 0:01:44]} 17. Qxb3 {[%clk 0:02:39]}  c5 {[%clk 0:01:43]} 18. Qd1 {[%clk 0:02:28]}  a4 {[%clk 0:01:40]} 19. Kh2 {[%clk 0:02:26]}  Qa5 {[%clk 0:01:22]} 20. Bf3 {[%clk 0:02:24]}  Nf6 {[%clk 0:01:21]} 21. Kg2 {[%clk 0:02:24]}  Qb4 {[%clk 0:01:20]} 22. Qd3 {[%clk 0:02:13]}  Rf8 {[%clk 0:01:15]} 23. Bd2 {[%clk 0:02:11]}  Qb6 {[%clk 0:01:14]} 24. Be2 {[%clk 0:02:02]}  Ne8 {[%clk 0:01:09]} 25. Rb1 {[%clk 0:02:00]}  f5 {[%clk 0:01:07]} 26. b3 {[%clk 0:02:00]}  a3 {[%clk 0:01:01]} 27. f3 {[%clk 0:01:44]}  Nc7 {[%clk 0:00:38]} 28. g4 {[%clk 0:01:41]}  Na6 {[%clk 0:00:37]} 29. Be3 {[%clk 0:01:38]}  Nb4 {[%clk 0:00:36]} 30. Qd2 {[%clk 0:01:38]}  f4 {[%clk 0:00:36]} 31. Bf2 {[%clk 0:01:38]}  Bf6 {[%clk 0:00:36]} 32. h4 {[%clk 0:01:37]}  Bd8 {[%clk 0:00:29]} 33. Rh1 {[%clk 0:01:37]}  h6 {[%clk 0:00:25]} 34. Be1 {[%clk 0:01:29]}  Qa6 {[%clk 0:00:24]} 35. Rc1 {[%clk 0:01:22]}  Ba5 {[%clk 0:00:23]} 36. Qd1 {[%clk 0:01:21]}  Qb6 {[%clk 0:00:18]} 37. Bd2 {[%clk 0:01:21]}  Qd8 {[%clk 0:00:16]} 38. h5 {[%clk 0:01:08]}  g5 {[%clk 0:00:15]} 39. Be1 {[%clk 0:01:08]}  Qe7 {[%clk 0:00:14]} 40. Bd3 {[%clk 0:01:08]}  Qf7 {[%clk 0:00:13]} 41. Rf1 {[%clk 0:01:04]}  Qe7 {[%clk 0:00:12]} 42. Bb1 {[%clk 0:01:04]}  Qe8 {[%clk 0:00:10]} 43. Qe2 {[%clk 0:01:04]}  Qe7 {[%clk 0:00:11]} 44. Nd1 {[%clk 0:01:03]}  Rf7 {[%clk 0:00:10]} 45. Nf2 {[%clk 0:00:59]}  Qd8 {[%clk 0:00:08]} 46. Nd3 {[%clk 0:00:58]}  Nxd3 {[%clk 0:00:07]} 47. Bxd3 {[%clk 0:00:59]}  Bxe1 {[%clk 0:00:07]} 48. Qxe1 {[%clk 0:01:00]}  Qb6 {[%clk 0:00:05]} 49. Rb1 {[%clk 0:01:00]}  Qb4 {[%clk 0:00:06]} 50. Kf2 {[%clk 0:00:55]}  b6 {[%clk 0:00:06]} 51. Ke2 {[%clk 0:00:51]}  Rff8 {[%clk 0:00:06]} 52. Qd2 {[%clk 0:00:51]}  Kg7 {[%clk 0:00:06]} 53. Rfc1 {[%clk 0:00:52]}  Ra5 {[%clk 0:00:05]} 54. Qc3 {[%clk 0:00:51]}  Rf6 {[%clk 0:00:05]} 55. Qd2 {[%clk 0:00:52]}  Rf7 {[%clk 0:00:03]} 56. Qc3 {[%clk 0:00:52]}  Rf6 {[%clk 0:00:04]} 57. Qd2 {[%clk 0:00:53]}  Kf7 {[%clk 0:00:04]} 58. Qc3 {[%clk 0:00:52]}  Ke7 {[%clk 0:00:05]} 59. Qd2 {[%clk 0:00:53]}  Rf8 {[%clk 0:00:05]} 60. Qc3 {[%clk 0:00:53]}  Rfa8 {[%clk 0:00:05]} 61. Qd2 {[%clk 0:00:54]}  R5a7 {[%clk 0:00:05]} 62. Qc3 {[%clk 0:00:54]}  Rc7 {[%clk 0:00:06]} 63. Qd2 {[%clk 0:00:55]}  Rcc8 {[%clk 0:00:06]} 64. Qc3 {[%clk 0:00:55]}  Rf8 {[%clk 0:00:06]} 65. Qd2 {[%clk 0:00:55]}  Rf6 {[%clk 0:00:06]} 66. Qc3 {[%clk 0:00:56]}  Raf8 {[%clk 0:00:07]} 67. Qd2 {[%clk 0:00:56]}  R6f7 {[%clk 0:00:07]} 68. Qc3 {[%clk 0:00:57]}  Ra8 {[%clk 0:00:07]} 69. Qd2 {[%clk 0:00:57]}  Ra5 {[%clk 0:00:07]} 70. Qc3 {[%clk 0:00:58]}  Rf6 {[%clk 0:00:08]} 71. Qd2 {[%clk 0:00:58]}  Rf7 {[%clk 0:00:08]} 72. Qc3 {[%clk 0:00:59]}  Rf6 {[%clk 0:00:09]} 1/2-1/2


[Site "https://www.chess.com"]

[Event "Titled Tuesday Blitz September 20 Late 2022"]
[White "Cukrowski, Filip"]
[Black "Pham, Khoi"]
[WhiteFideId "1171097"]
[BlackFideId "1054988"]
[WhiteElo "2093"]
[BlackElo "2416"]
[Result "0-1"]
[Round "10"]
[TimeControl "180+1"]
[Date "2022.09.20"]
[WhiteClock "0:00:16"]
[BlackClock "0:01:36"]

1. d4 {[%clk 0:03:00]}  f5 {[%clk 0:02:58]} 2. g3 {[%clk 0:02:54]}  Nf6 {[%clk 0:02:55]} 3. Bg2 {[%clk 0:02:55]}  g6 {[%clk 0:02:56]} 4. Nd2 {[%clk 0:02:54]}  Bg7 {[%clk 0:02:56]} 5. c3 {[%clk 0:02:52]}  O-O {[%clk 0:02:56]} 6. h4 {[%clk 0:02:53]}  d6 {[%clk 0:02:54]} 7. h5 {[%clk 0:02:47]}  Nxh5 {[%clk 0:02:54]} 8. Rxh5 {[%clk 0:02:47]}  gxh5 {[%clk 0:02:54]} 9. e3 {[%clk 0:02:48]}  Nc6 {[%clk 0:02:45]} 10. Qxh5 {[%clk 0:02:47]}  e6 {[%clk 0:02:43]} 11. Ngf3 {[%clk 0:02:46]}  Qf6 {[%clk 0:02:42]} 12. b4 {[%clk 0:02:39]}  Ne7 {[%clk 0:02:37]} 13. Bb2 {[%clk 0:02:36]}  Qg6 {[%clk 0:02:36]} 14. Qh1 {[%clk 0:02:31]}  Bd7 {[%clk 0:02:35]} 15. Nh4 {[%clk 0:02:29]}  Qf6 {[%clk 0:02:35]} 16. Bxb7 {[%clk 0:02:29]}  Rab8 {[%clk 0:02:34]} 17. Bg2 {[%clk 0:02:20]}  c5 {[%clk 0:02:30]} 18. a3 {[%clk 0:02:15]}  a5 {[%clk 0:02:27]} 19. Nc4 {[%clk 0:01:34]}  axb4 {[%clk 0:02:24]} 20. cxb4 {[%clk 0:01:34]}  cxb4 {[%clk 0:02:19]} 21. d5 {[%clk 0:01:33]}  e5 {[%clk 0:02:19]} 22. a4 {[%clk 0:01:29]}  Rfc8 {[%clk 0:02:17]} 23. Qf1 {[%clk 0:01:20]}  Ng6 {[%clk 0:02:09]} 24. Nf3 {[%clk 0:01:17]}  Qe7 {[%clk 0:02:06]} 25. Nfd2 {[%clk 0:01:16]}  e4 {[%clk 0:02:05]} 26. Bxg7 {[%clk 0:01:02]}  Qxg7 {[%clk 0:02:06]} 27. Ke2 {[%clk 0:01:02]}  Rc5 {[%clk 0:01:59]} 28. Qb1 {[%clk 0:00:58]}  Rxd5 {[%clk 0:01:57]} 29. Ke1 {[%clk 0:00:44]}  Qc3 {[%clk 0:01:55]} 30. Bf1 {[%clk 0:00:34]}  Ne5 {[%clk 0:01:54]} 31. Ra2 {[%clk 0:00:20]}  Nf3+ {[%clk 0:01:50]} 32. Kd1 {[%clk 0:00:20]}  b3 {[%clk 0:01:49]} 33. Rb2 {[%clk 0:00:20]}  Rc8 {[%clk 0:01:47]} 34. Be2 {[%clk 0:00:18]}  Nxd2 {[%clk 0:01:45]} 35. Nxd2 {[%clk 0:00:17]}  Bxa4 {[%clk 0:01:43]} 36. Qa1 {[%clk 0:00:16]}  Rxd2+ {[%clk 0:01:36]} 0-1


[Site "https://www.chess.com"]

[Event "Titled Tuesday Blitz September 20 Late 2022"]
[White "Fernandez De La Vara, Arnaldo"]
[Black "Nasuta, Grzegorz"]
[WhiteFideId "3518388"]
[BlackFideId "1141686"]
[WhiteElo "2387"]
[BlackElo "2354"]
[Result "1-0"]
[Round "10"]
[TimeControl "180+1"]
[Date "2022.09.20"]
[WhiteClock "0:01:18"]
[BlackClock "0:00:11"]

1. Nf3 {[%clk 0:03:00]}  Nf6 {[%clk 0:02:59]} 2. b3 {[%clk 0:03:01]}  d5 {[%clk 0:02:58]} 3. Bb2 {[%clk 0:03:02]}  Bf5 {[%clk 0:02:58]} 4. g3 {[%clk 0:03:03]}  h6 {[%clk 0:02:59]} 5. Bg2 {[%clk 0:03:04]}  e6 {[%clk 0:02:59]} 6. O-O {[%clk 0:03:04]}  c6 {[%clk 0:02:59]} 7. d3 {[%clk 0:03:05]}  Be7 {[%clk 0:02:59]} 8. Nbd2 {[%clk 0:03:05]}  O-O {[%clk 0:03:00]} 9. Qe1 {[%clk 0:03:06]}  Bh7 {[%clk 0:02:59]} 10. e4 {[%clk 0:03:07]}  a5 {[%clk 0:02:59]} 11. a4 {[%clk 0:03:07]}  Nbd7 {[%clk 0:02:58]} 12. Qe2 {[%clk 0:03:07]}  Qc7 {[%clk 0:02:38]} 13. Kh1 {[%clk 0:03:06]}  Nc5 {[%clk 0:02:35]} 14. Ne5 {[%clk 0:03:05]}  Na6 {[%clk 0:02:33]} 15. f4 {[%clk 0:02:52]}  Nb4 {[%clk 0:02:33]} 16. Rac1 {[%clk 0:02:52]}  Rad8 {[%clk 0:02:31]} 17. g4 {[%clk 0:02:50]}  Nd7 {[%clk 0:02:19]} 18. Nxd7 {[%clk 0:02:27]}  Qxd7 {[%clk 0:02:19]} 19. f5 {[%clk 0:02:26]}  dxe4 {[%clk 0:02:15]} 20. Nxe4 {[%clk 0:02:25]}  exf5 {[%clk 0:02:14]} 21. gxf5 {[%clk 0:02:25]}  Bxf5 {[%clk 0:02:12]} 22. Rg1 {[%clk 0:01:53]}  Bg6 {[%clk 0:02:08]} 23. Bf3 {[%clk 0:01:43]}  Nd5 {[%clk 0:02:04]} 24. Rcf1 {[%clk 0:01:34]}  Kh7 {[%clk 0:02:02]} 25. Bg4 {[%clk 0:01:27]}  Qc7 {[%clk 0:02:01]} 26. Bf5 {[%clk 0:01:24]}  Nf4 {[%clk 0:01:57]} 27. Qg4 {[%clk 0:01:25]}  Bg5 {[%clk 0:00:10]} 28. Nxg5+ {[%clk 0:01:18]}  hxg5 {[%clk 0:00:11]} 29. Qxg5 {[%clk 0:01:18]} 1-0


[Site "https://www.chess.com"]

[Event "Titled Tuesday Blitz September 20 Late 2022"]
[White "Gomez Ledo, Roberto Carlos"]
[Black "Pert, Richard G"]
[WhiteFideId "3507076"]
[BlackFideId "404748"]
[WhiteElo "2379"]
[BlackElo "2441"]
[Result "1/2-1/2"]
[Round "10"]
[TimeControl "180+1"]
[Date "2022.09.20"]
[WhiteClock "0:00:15"]
[BlackClock "0:00:25"]

1. d4 {[%clk 0:03:00]}  Nf6 {[%clk 0:02:59]} 2. Bf4 {[%clk 0:02:59]}  d5 {[%clk 0:02:57]} 3. e3 {[%clk 0:02:56]}  c5 {[%clk 0:02:57]} 4. Nf3 {[%clk 0:02:56]}  Nc6 {[%clk 0:02:57]} 5. Nbd2 {[%clk 0:02:56]}  Nh5 {[%clk 0:02:57]} 6. dxc5 {[%clk 0:02:48]}  Nxf4 {[%clk 0:02:57]} 7. exf4 {[%clk 0:02:49]}  g6 {[%clk 0:02:57]} 8. c3 {[%clk 0:02:47]}  Bh6 {[%clk 0:02:55]} 9. g3 {[%clk 0:02:47]}  O-O {[%clk 0:02:55]} 10. Be2 {[%clk 0:02:34]}  d4 {[%clk 0:02:54]} 11. cxd4 {[%clk 0:02:28]}  Nxd4 {[%clk 0:02:54]} 12. O-O {[%clk 0:02:27]}  Bh3 {[%clk 0:02:35]} 13. Re1 {[%clk 0:02:26]}  Nxe2+ {[%clk 0:02:34]} 14. Qxe2 {[%clk 0:02:24]}  Re8 {[%clk 0:02:26]} 15. Ne4 {[%clk 0:02:20]}  Qa5 {[%clk 0:02:20]} 16. Nfg5 {[%clk 0:02:03]}  Bf5 {[%clk 0:02:16]} 17. Qc4 {[%clk 0:01:56]}  Rf8 {[%clk 0:02:10]} 18. b4 {[%clk 0:01:55]}  Qc7 {[%clk 0:02:08]} 19. h4 {[%clk 0:01:50]}  Bg7 {[%clk 0:02:04]} 20. Rad1 {[%clk 0:01:48]}  h6 {[%clk 0:02:01]} 21. Nf3 {[%clk 0:01:40]}  Bg4 {[%clk 0:01:58]} 22. Rd3 {[%clk 0:01:39]}  Rad8 {[%clk 0:01:55]} 23. Ree3 {[%clk 0:01:30]}  Be6 {[%clk 0:01:46]} 24. Qc2 {[%clk 0:01:22]}  Rxd3 {[%clk 0:01:42]} 25. Rxd3 {[%clk 0:01:19]}  Bf5 {[%clk 0:01:42]} 26. Re3 {[%clk 0:01:16]}  Rd8 {[%clk 0:01:42]} 27. a4 {[%clk 0:01:09]}  Rd5 {[%clk 0:01:26]} 28. Qe2 {[%clk 0:01:05]}  a5 {[%clk 0:01:22]} 29. b5 {[%clk 0:00:58]}  e6 {[%clk 0:01:18]} 30. Ne5 {[%clk 0:00:42]}  Bxe5 {[%clk 0:01:13]} 31. fxe5 {[%clk 0:00:41]}  Bxe4 {[%clk 0:01:13]} 32. Rxe4 {[%clk 0:00:41]}  Qxc5 {[%clk 0:01:05]} 33. Kg2 {[%clk 0:00:41]}  Kg7 {[%clk 0:01:00]} 34. Kh3 {[%clk 0:00:26]}  b6 {[%clk 0:00:56]} 35. h5 {[%clk 0:00:25]}  g5 {[%clk 0:00:52]} 36. Kg2 {[%clk 0:00:21]}  Rd4 {[%clk 0:00:44]} 37. Rxd4 {[%clk 0:00:18]}  Qxd4 {[%clk 0:00:44]} 38. Qe3 {[%clk 0:00:18]}  Qxa4 {[%clk 0:00:40]} 39. Qxb6 {[%clk 0:00:18]}  Qe4+ {[%clk 0:00:40]} 40. Kg1 {[%clk 0:00:18]}  a4 {[%clk 0:00:31]} 41. Qa6 {[%clk 0:00:14]}  Qe1+ {[%clk 0:00:26]} 42. Kg2 {[%clk 0:00:14]}  Qe4+ {[%clk 0:00:26]} 43. Kg1 {[%clk 0:00:14]}  Qe1+ {[%clk 0:00:25]} 44. Kg2 {[%clk 0:00:14]}  Qe4+ {[%clk 0:00:25]} 45. Kg1 {[%clk 0:00:15]} 1/2-1/2


[Site "https://www.chess.com"]